fUSD/lending_fUSD_20250225
["ID","MTS","AMOUNT","RATE_DAILY","PERIOD"]
[354391607,1740468789154,-283.88030134,0.00058904,120]
[354391608,1740468789167,-522.31,0.00058904,120]
[354391609,1740468789177,-1188.98,0.00058904,120]
[354391610,1740468789187,-526.28,0.00058904,120]
[354391611,1740468789197,-1040.34,0.00058904,120]
[354391612,1740468789207,-500.0,0.00058904,120]
[354391613,1740468789218,-724.24,0.00058904,120]
[354391614,1740468789228,-174.02119905,0.00058904,120]
[354391615,1740468789238,-1422.51,0.00058904,120]
[354391616,1740468789248,-500.0,0.00058904,120]
[354391617,1740468789258,-1615.65,0.00058904,120]
[354391618,1740468789267,-992.42,0.00058904,20]
[354391619,1740468789277,-901.44,0.00058904,120]
[354391620,1740468789287,-816.88,0.00058904,120]
[354391621,1740468789297,-500.0,0.00058904,120]
[354391622,1740468789306,-671.92,0.00058904,120]
[354391623,1740468789316,-955.28,0.00058904,120]
[354391624,1740468789326,-1525.72,0.00058904,120]
[354391625,1740468789336,-1437.76,0.00058904,120]
[354391626,1740468789346,-1132.0,0.00058904,120]
[354391627,1740468789355,-1768.38,0.00058904,120]
[354391628,1740468789370,-872.14,0.00058904,120]
[354391629,1740468789380,-1405.94,0.00058904,120]
[354391630,1740468789391,-1000.0,0.00058904,120]
[354391631,1740468789401,-745.77,0.00058904,120]
[354391632,1740468789411,-500.0,0.00058904,120]
[354391633,1740468789420,-820.25,0.00058904,120]
[354391634,1740468789430,-778.18,0.00058904,120]
[354391635,1740468789439,-500.0,0.00058904,120]
[354391636,1740468789449,-500.0,0.00058904,120]
[354391637,1740468789458,-618.03,0.00058904,120]
[354391638,1740468789468,-538.57,0.00058904,120]
[354391639,1740468789477,-659.87,0.00058904,120]
[354391640,1740468789488,-542.24,0.00058904,120]
[354391641,1740468789497,-1379.17,0.00058904,120]
[354391642,1740468789507,-813.45,0.00058904,120]
[354391643,1740468789517,-1790.29,0.00058904,120]
[354391644,1740468789527,-817.76,0.00058904,120]
[354391645,1740468789536,-1159.57,0.00058904,120]
[354391646,1740468789546,-500.0,0.00058904,120]
[354391647,1740468789557,-500.0,0.00058904,120]
[354391648,1740468789568,-500.0,0.00058904,120]
[354391649,1740468789579,-1035.42,0.00058904,120]
[354391650,1740468789588,-1067.5,0.00058904,120]
[354391651,1740468789598,-500.0,0.00058904,120]
[354391652,1740468789610,-911.5,0.00058904,120]
[354391653,1740468789622,-782.71,0.00058904,120]
[354391654,1740468789632,-692.81,0.00058904,120]
[354391655,1740468789643,-1417.28,0.00058904,120]
[354391656,1740468789655,-4827.95,0.00058904,120]
[354391657,1740468789665,-907.1,0.00058904,120]
[354391658,1740468789675,-1025.54,0.00058904,120]
[354391659,1740468789686,-972.52,0.00058904,120]
[354391660,1740468789696,-1147.6,0.00058904,120]
[354391661,1740468789706,-954.71,0.00058904,120]
[354391662,1740468789717,-508.53,0.00058904,120]
[354391663,1740468789727,-500.0,0.00058904,120]
[354391664,1740468789737,-1526.64,0.00058904,120]
[354391665,1740468789746,-672.91,0.00058904,120]
[354391666,1740468789756,-927.58,0.00058904,120]
[354391667,1740468789766,-500.0,0.00058904,120]
[354391668,1740468789776,-1242.39,0.00058904,120]
[354391669,1740468789787,-1600.52,0.00058904,120]
[354391670,1740468789796,-871.61,0.00058904,120]
[354391671,1740468789807,-549.43,0.00058904,120]
[354391672,1740468789816,-1142.54,0.00058904,120]
[354391673,1740468789826,-552.98,0.00058904,120]
[354391674,1740468789835,-1401.97,0.00058904,120]
[354391675,1740468789845,-1245.93,0.00058904,120]
[354391676,1740468789855,-1200.36,0.00058904,120]
[354391677,1740468789870,-500.0,0.00058904,120]
[354391678,1740468789882,-504.05,0.00058904,120]
[354391679,1740468789892,-500.0,0.00058904,120]
[354391680,1740468789902,-971.46,0.00058904,120]
[354391681,1740468789912,-500.0,0.00058904,120]
[354391682,1740468789922,-619.81458811,0.00058904,120]
[354391683,1740468789933,-599.74,0.00058904,120]
[354391684,1740468789944,-515.75,0.00058904,120]
[354391685,1740468789954,-1301.53,0.00058904,120]
[354391686,1740468789964,-500.0,0.00058904,120]
[354391687,1740468789974,-1377.93,0.00058904,120]
[354391688,1740468789984,-623.61,0.00058904,120]
[354391689,1740468789994,-519.39,0.00058904,120]
[354391690,1740468790011,-500.0,0.00058904,120]
[354391691,1740468790034,-1303.38,0.00058904,120]
[354391692,1740468790044,-500.0,0.00058904,120]
[354391693,1740468790054,-500.0,0.00058904,120]
[354391694,1740468790064,-585.47,0.00058904,120]
[354391695,1740468790074,-1349.4,0.00058904,120]
[354391696,1740468790084,-519.81966093,0.00058904,120]
[354391697,1740468790094,-552.97,0.00058904,120]
[354391698,1740468790110,-741.84,0.00058904,120]
[354391699,1740468790121,-700.58,0.00058904,2]
[354391700,1740468790130,-2351.09,0.00058904,2]
[354391701,1740468790140,-994.98,0.00058904,30]
[354391702,1740468790151,-715.33,0.00058904,120]
[354391703,1740468790161,-943.25,0.00058904,120]
[354391704,1740468790171,-1439.89,0.00058904,120]
[354391705,1740468790181,-500.0,0.00058904,120]
[354391706,1740468790190,-657.52,0.00058904,120]
[354391707,1740468790200,-523.09131031,0.00058904,120]
[354391708,1740468790210,-523.79,0.00058904,120]
[354391709,1740468790220,-500.0,0.00058904,120]
[354391710,1740468790230,-1664.27,0.00058904,120]
[354391711,1740468790240,-943.64,0.00058904,120]
[354391712,1740468790250,-516.4,0.00058904,120]
[354391713,1740468790260,-712.11,0.00058904,120]
[354391714,1740468790268,-500.0,0.00058904,120]
[354391715,1740468790278,-500.0,0.00058904,120]
[354391716,1740468790288,-888.35,0.00058904,120]
[354391717,1740468790299,-500.0,0.00058904,120]
[354391718,1740468790309,-522.22,0.00058904,120]
[354391719,1740468790318,-1032.87,0.00058904,120]
[354391720,1740468790328,-517.50136288,0.00058904,120]
[354391721,1740468790338,-1438.9,0.00058904,120]
[354391722,1740468790348,-570.8,0.00058904,120]
[354391723,1740468790357,-815.66,0.00058904,120]
[354391724,1740468790369,-500.0,0.00058904,120]
[354391725,1740468790379,-1275.45,0.00058904,120]
[354391726,1740468790389,-3980.64,0.00058904,120]
[354391727,1740468790399,-500.0,0.00058904,120]
[354391728,1740468790408,-500.0,0.00058904,120]
[354391729,1740468790418,-1206.75,0.00058904,120]
[354391730,1740468790427,-500.0,0.00058904,120]
[354391731,1740468790438,-1130.49,0.00058904,120]
[354391732,1740468790448,-1535.83,0.00058904,120]
[354391733,1740468790458,-1768.01,0.00058904,120]
[354391734,1740468790468,-664.86,0.00058904,120]
[354391735,1740468790478,-696.61,0.00058904,120]
[354391736,1740468790488,-1200.87,0.00058904,120]
[354391737,1740468790498,-1522.97,0.00058904,120]
[354391738,1740468790508,-1393.05,0.00058904,120]
[354391739,1740468790518,-894.01,0.00058904,120]
[354391740,1740468790528,-986.38,0.00058904,120]
[354391741,1740468790538,-1886.6,0.00058904,120]
[354391742,1740468790548,-1184.76,0.00058904,120]
[354391743,1740468790557,-1319.72,0.00058904,120]
[354391744,1740468790567,-2022.2,0.00058904,120]
[354391745,1740468790577,-1099.29,0.00058904,120]
[354391746,1740468790586,-512.51,0.00058904,120]
[354391747,1740468790596,-517.98,0.00058904,120]
[354391748,1740468790606,-1030.18,0.00058904,120]
[354391749,1740468790618,-1444.43,0.00058904,120]
[354391750,1740468790628,-971.18,0.00058904,120]
[354391751,1740468790638,-1142.3,0.00058904,120]
[354391752,1740468790648,-1194.04,0.00058904,120]
[354391753,1740468790658,-1748.82,0.00058904,120]
[354391754,1740468790667,-679.54,0.00058904,120]
[354391755,1740468790677,-1309.17,0.00058904,120]
[354391756,1740468790687,-500.0,0.00058904,120]
[354391757,1740468790697,-587.74,0.00058904,120]
[354391758,1740468790706,-778.7,0.00058904,120]
[354391759,1740468790716,-730.67,0.00058904,120]
[354391760,1740468790725,-733.26,0.00058904,120]
[354391761,1740468790735,-598.78,0.00058904,120]
[354391762,1740468790744,-1016.76,0.00058904,120]
[354391763,1740468790754,-789.0,0.00058904,120]
[354391764,1740468790764,-343.780273,0.00058904,120]
[354391765,1740468790774,-500.0,0.00058904,120]
[354391766,1740468790784,-1145.46,0.00058904,120]
[354391767,1740468790794,-4362.55,0.00058904,120]
[354391768,1740468790804,-631.53,0.00058904,120]
[354391769,1740468790814,-969.91,0.00058904,120]
[354391770,1740468790824,-759.14,0.00058904,120]
[354391771,1740468790833,-500.0,0.00058904,120]
[354391772,1740468790843,-3017.39,0.00058904,120]
[354391773,1740468790852,-2220.86,0.00058904,120]
[354391774,1740468790863,-318.751745,0.00058904,120]
[354391775,1740468790872,-1553.03,0.00058904,120]
[354391776,1740468790882,-722.9,0.00058904,120]
[354391777,1740468790891,-910.26,0.00058904,120]
[354391778,1740468790901,-856.37,0.00058904,120]
[354391779,1740468790910,-1830.19,0.00058904,120]
[354391780,1740468790920,-887.73,0.00058904,120]
[354391781,1740468790930,-500.0,0.00058904,120]
[354391782,1740468790940,-1715.31,0.00058904,120]
[354391783,1740468790950,-686.54,0.00058904,120]
[354391784,1740468790959,-2424.1,0.00058904,120]
[354391785,1740468790969,-1521.55,0.00058904,120]
[354391786,1740468790979,-2919.48,0.00058904,120]
[354391787,1740468790988,-823.47,0.00058904,120]
[354391788,1740468790998,-1738.48,0.00058904,120]
[354391789,1740468791008,-915.34,0.00058904,120]
[354391790,1740468791018,-2711.99,0.00058904,120]
[354391791,1740468791027,-576.99,0.00058904,120]
[354391792,1740468791036,-500.0,0.00058904,120]
[354391793,1740468791046,-2110.84,0.00058904,120]
[354391794,1740468791055,-2315.41,0.00058904,120]
[354391795,1740468791065,-3875.43,0.00058904,7]
[354391796,1740468791074,-637.74,0.00058904,120]
[354391797,1740468791083,-1035.71,0.00058904,120]
[354391798,1740468791093,-750.25,0.00058904,120]
[354391799,1740468791104,-3264.88,0.00058904,120]
[354391800,1740468791115,-2938.93,0.00058904,120]
[354391801,1740468791125,-1210.86,0.00058904,120]
[354391802,1740468791138,-534.95,0.00058904,120]
[354391803,1740468791148,-2458.44,0.00058904,120]
[354391804,1740468791158,-703.65,0.00058904,120]
[354391805,1740468791168,-1556.62,0.00058904,120]
[354391806,1740468791178,-500.0,0.00058904,120]
[354391807,1740468791188,-2761.69,0.00058904,120]
[354391808,1740468791197,-585.51,0.00058904,120]
[354391809,1740468791208,-2649.21,0.00058904,120]
[354391810,1740468791217,-1981.89,0.00058904,120]
[354391811,1740468791227,-689.83,0.00058904,120]
[354391812,1740468791236,-2553.02,0.00058904,120]
[354391813,1740468791247,-3211.4,0.00058904,120]
[354391814,1740468791257,-1493.71,0.00058904,120]
[354391815,1740468791267,-1352.07,0.00058904,120]
[354391816,1740468791277,-2909.1,0.00058904,120]
[354391817,1740468791286,-1667.75,0.00058904,120]
[354391818,1740468791296,-4349.64,0.00058904,120]
[354391819,1740468791306,-1519.71,0.00058904,120]
[354391820,1740468791317,-752.34,0.00058904,120]
[354391821,1740468791327,-864.91,0.00058904,120]
[354391822,1740468791337,-1290.66,0.00058904,120]
[354391823,1740468791347,-500.0,0.00058904,120]
[354391824,1740468791357,-910.81,0.00058904,5]
[354391825,1740468791370,-2901.27,0.00058904,120]
[354391826,1740468791380,-1857.67,0.00058904,120]
[354391827,1740468791390,-500.0,0.00058904,120]
[354391828,1740468791400,-2986.93,0.00058904,120]
[354391829,1740468791410,-2864.49,0.00058904,120]
[354391830,1740468791420,-2305.88,0.00058904,120]
[354391831,1740468791430,-566.15386543,0.00058904,120]
[354391832,1740468791441,-2121.17,0.00058904,120]
[354391833,1740468791451,-1752.42,0.00058904,120]
[354391834,1740468791461,-538.64,0.00058904,120]
[354391835,1740468791471,-1452.1,0.00058904,120]
[354391836,1740468791579,-1822.96,0.00058904,120]
[354391837,1740468791589,-2477.45,0.00058904,120]
[354391838,1740468791600,-1851.24,0.00058904,120]
[354391839,1740468791610,-607.87,0.00058904,120]
[354391840,1740468791624,-2265.65,0.00058904,120]
[354391841,1740468791634,-3192.11,0.00058904,120]
[354391842,1740468791644,-3707.86,0.00058904,120]
[354391843,1740468791655,-1530.35,0.00058904,120]
[354391844,1740468791665,-1400.72,0.00058904,120]
[354391845,1740468791675,-813.46,0.00058904,120]
[354391846,1740468791685,-1028.29,0.00058904,120]
[354391847,1740468791695,-1470.7,0.00058904,120]
[354391848,1740468791705,-2337.12,0.00058904,120]
[354391849,1740468791715,-3975.46,0.00058904,120]
[354391850,1740468791724,-3333.6,0.00058904,120]
[354391851,1740468791734,-5873.49,0.00058904,120]
[354391852,1740468791743,-1036.75,0.00058904,120]
[354391853,1740468791754,-640.5,0.00058904,120]
[354391854,1740468791763,-500.0,0.00058904,120]
[354391855,1740468791773,-562.09,0.00058904,120]
[354391856,1740468791782,-2745.61,0.00058904,120]
[354391857,1740468791793,-707.46,0.00058904,120]
[354391858,1740468791803,-4540.04,0.00058904,120]
[354391859,1740468791812,-1113.18,0.00058904,120]
[354391860,1740468791822,-613.18,0.00058904,120]
[354391861,1740468791831,-3052.04,0.00058904,120]
[354391862,1740468791841,-2703.16,0.00058904,120]
[354391863,1740468791851,-522.41,0.00058904,120]
[354391864,1740468791861,-551.64,0.00058904,120]
[354391865,1740468791875,-1552.51,0.00058904,120]
[354391866,1740468791884,-586.08132539,0.00058904,60]
[354391867,1740468791894,-2971.45,0.00058904,90]
[354391868,1740468791904,-1701.44,0.00058904,120]
[354391869,1740468791913,-553.8,0.00058904,120]
[354391870,1740468791923,-1833.0,0.00058904,120]
[354391871,1740468791934,-2581.17,0.00058904,120]
[354391872,1740468791944,-500.0,0.00058904,120]
[354391873,1740468791953,-522.17,0.00058904,120]
[354391874,1740468791963,-3435.08,0.00058904,120]
[354391875,1740468791973,-500.0,0.00058904,120]
[354391876,1740468791983,-857.98,0.00058904,120]
[354391877,1740468791993,-3140.0,0.00058904,120]
[354391878,1740468792003,-3227.53,0.00058904,120]
[354391879,1740468792013,-500.0,0.00058904,120]
[354391880,1740468792023,-775.19,0.00058904,120]
[354391881,1740468792032,-500.0,0.00058904,120]
[354391882,1740468792042,-872.89,0.00058904,120]
[354391883,1740468792052,-2538.08,0.00058904,120]
[354391884,1740468792061,-2940.18,0.00058904,120]
[354391885,1740468792071,-3583.88,0.00058904,120]
[354391886,1740468792081,-2559.65,0.00058904,120]
[354391887,1740468792091,-1118.81,0.00058904,120]
[354391888,1740468792101,-688.16,0.00058904,120]
[354391889,1740468792118,-3329.23,0.00058904,120]
[354391890,1740468792128,-3487.12,0.00058904,120]
[354391891,1740468792138,-1907.44,0.00058904,120]
[354391892,1740468792149,-568.38,0.00058904,120]
[354391893,1740468792159,-2138.38,0.00058904,120]
[354391894,1740468792170,-1469.89,0.00058904,120]
[354391895,1740468792180,-880.12,0.00058904,120]
[354391896,1740468792189,-1941.03,0.00058904,120]
[354391897,1740468792199,-998.34,0.00058904,120]
[354391898,1740468792208,-1969.46,0.00058904,120]
[354391899,1740468792220,-2020.04,0.00058904,120]
[354391900,1740468792229,-1704.77,0.00058904,120]
[354391901,1740468792239,-500.0,0.00058904,120]
[354391902,1740468792249,-3000.0,0.00058904,120]
[354391903,1740468792260,-1814.1,0.00058904,120]
[354391904,1740468792270,-3162.2,0.00058904,120]
[354391905,1740468792281,-561.29,0.00058904,120]
[354391906,1740468792291,-4214.34,0.00058904,120]
[354391907,1740468792301,-1107.87,0.00058904,120]
[354391908,1740468792311,-1793.36,0.00058904,120]
[354391909,1740468792321,-1453.67,0.00058904,30]
[354391910,1740468792331,-558.43,0.00058904,120]
[354391911,1740468792340,-1291.79,0.00058904,120]
[354391912,1740468792350,-2203.33,0.00058904,120]
[354391913,1740468792361,-2186.37,0.00058904,120]
[354391914,1740468792373,-2099.71,0.00058904,120]
[354391915,1740468792383,-1541.65,0.00058904,120]
[354391916,1740468792392,-500.0,0.00058904,2]
[354391917,1740468792401,-500.0,0.00058904,120]
[354391918,1740468792411,-2864.64,0.00058904,120]
[354391919,1740468792420,-500.0,0.00058904,120]
[354391920,1740468792429,-1803.36,0.00058904,120]
[354391921,1740468792438,-1506.59,0.00058904,120]
[354391922,1740468792448,-1568.57,0.00058904,120]
[354391923,1740468792458,-980.59,0.00058904,120]
[354391924,1740468792468,-1792.49,0.00058904,120]
[354391925,1740468792477,-500.0,0.00058904,120]
[354391926,1740468792487,-1620.72,0.00058904,120]
[354391927,1740468792496,-500.0,0.00058904,120]
[354391928,1740468792506,-659.49,0.00058904,120]
[354391929,1740468792515,-500.0,0.00058904,120]
[354391930,1740468792525,-3340.49,0.00058904,120]
[354391931,1740468792534,-849.91,0.00058904,120]
[354391932,1740468792544,-668.51,0.00058904,120]
[354391933,1740468792553,-680.52,0.00058904,120]
[354391934,1740468792562,-1680.11,0.00058904,120]
[354391935,1740468792572,-500.0,0.00058904,120]
[354391936,1740468792581,-2006.24,0.00058904,120]
[354391937,1740468792590,-2470.99,0.00058904,120]
[354391938,1740468792600,-369.21,0.00058904,30]
[354391939,1740468792610,-439.49,0.00058904,30]
[354391940,1740468792622,-439.49,0.00058904,30]
[354391941,1740468792632,-350.0,0.00059,120]
[354391942,1740468792642,-10000.0,0.00059,30]
[354391943,1740468792652,-1144.99,0.00059,60]
[354391944,1740468792664,-152.2841075,0.00059008,120]
[354391945,1740468792674,-570.50395612,0.0005909,2]
[354391946,1740468792684,-563.24,0.00059178,120]
[354391947,1740468792693,-580.45,0.00059178,120]
[354391948,1740468792703,-167.182594,0.00059178,120]
[354391949,1740468792712,-406.014874,0.00059178,120]
[354391950,1740468792722,-160.399577,0.00059178,120]
[354391951,1740468792732,-554.357489,0.00059178,120]
[354391952,1740468792741,-500.0,0.00059178,120]
[354391953,1740468792751,-500.0,0.00059178,120]
[354391954,1740468792761,-521.68,0.00059178,120]
[354391955,1740468792771,-500.0,0.00059178,120]
[354391956,1740468792780,-699.56,0.00059178,120]
[354391957,1740468792790,-500.0,0.00059178,120]
[354391958,1740468792800,-500.0,0.00059178,120]
[354391959,1740468792810,-687.3,0.00059178,120]
[354391960,1740468792819,-500.0,0.00059178,120]
[354391961,1740468792829,-1291.42,0.00059178,120]
[354391962,1740468792839,-500.0,0.00059178,120]
[354391963,1740468792849,-500.0,0.00059178,120]
[354391964,1740468792859,-444.58595484,0.00059178,120]
[354391965,1740468792873,-850.45,0.00059178,120]
[354391966,1740468792883,-836.92,0.00059178,120]
[354391967,1740468792893,-925.53,0.00059178,120]
[354391968,1740468793246,-525.48,0.00059178,120]
[354391969,1740468793261,-1017.7,0.00059178,120]
[354391970,1740468793271,-620.4,0.00059178,120]
[354391971,1740468793281,-500.0,0.00059178,120]
[354391972,1740468793291,-637.38,0.00059178,120]
[354391973,1740468793300,-569.79,0.00059178,120]
[354391974,1740468793310,-822.2,0.00059178,120]
[354391975,1740468793320,-500.0,0.00059178,120]
[354391976,1740468793330,-543.16,0.00059178,120]
[354391977,1740468793340,-1571.07,0.00059178,120]
[354391978,1740468793350,-848.24,0.00059178,120]
[354391979,1740468793360,-943.15,0.00059178,120]
[354391980,1740468793374,-500.0,0.00059178,120]
[354391981,1740468793384,-1168.63,0.00059178,120]
[354391982,1740468793395,-500.0,0.00059178,120]
[354391983,1740468793405,-517.51,0.00059178,120]
[354391984,1740468793414,-951.32,0.00059178,120]
[354391985,1740468793424,-2000.0,0.00059178,30]
[354391986,1740468793434,-500.0,0.00059178,120]
[354391987,1740468793444,-777.26,0.00059178,120]
[354391988,1740468793455,-184.73792806,0.00059178,120]
[354391989,1740468793464,-560.94,0.00059178,120]
[354391990,1740468793474,-404.43,0.00059178,7]
[354391991,1740468793484,-500.0,0.00059178,120]
[354391992,1740468793494,-1128.12,0.00059178,120]
[354391993,1740468793504,-610.79,0.00059178,120]
[354391994,1740468793514,-630.83,0.00059178,120]
[354391995,1740468793524,-500.0,0.00059178,120]
[354391996,1740468793534,-500.0,0.00059178,120]
[354391997,1740468793543,-500.0,0.00059178,120]
[354391998,1740468793553,-641.8,0.00059178,120]
[354391999,1740468793563,-500.0,0.00059178,120]
[354392000,1740468793573,-1736.97,0.00059178,120]
[354392001,1740468793583,-500.0,0.00059178,120]
[354392002,1740468793592,-551.92,0.00059178,120]
[354392003,1740468793602,-500.0,0.00059178,120]
[354392004,1740468793612,-500.0,0.00059178,120]
[354392005,1740468793624,-829.97,0.00059178,120]
[354392006,1740468793634,-1884.67,0.00059178,120]
[354392007,1740468793644,-1959.02,0.00059178,120]
[354392008,1740468793656,-687.65,0.00059178,120]
[354392009,1740468793667,-1049.16,0.00059178,120]
[354392010,1740468793678,-500.0,0.00059178,120]
[354392011,1740468793688,-186.72803695,0.00059178,120]
[354392012,1740468793698,-500.0,0.00059178,120]
[354392013,1740468793708,-910.65,0.00059178,120]
[354392014,1740468793718,-500.0,0.00059178,120]
[354392015,1740468793728,-500.0,0.00059178,120]
[354392016,1740468793739,-500.0,0.00059178,120]
[354392017,1740468793748,-500.0,0.00059178,120]
[354392018,1740468793758,-500.0,0.00059178,120]
[354392019,1740468793768,-1220.8,0.00059178,120]
[354392020,1740468793778,-522.31,0.00059178,120]
[354392021,1740468793788,-1188.98,0.00059178,120]
[354392022,1740468793798,-526.28,0.00059178,120]
[354392023,1740468793808,-1040.34,0.00059178,120]
[354392024,1740468793820,-500.0,0.00059178,120]
[354392025,1740468793830,-724.24,0.00059178,120]
[354392026,1740468793840,-1422.51,0.00059178,120]
[354392027,1740468793850,-500.0,0.00059178,120]
[354392028,1740468793860,-1615.65,0.00059178,120]
[354392029,1740468793873,-992.42,0.00059178,20]
[354392030,1740468793883,-901.44,0.00059178,120]
[354392031,1740468793893,-816.88,0.00059178,120]
[354392032,1740468793903,-500.0,0.00059178,120]
[354392033,1740468793913,-671.92,0.00059178,120]
[354392034,1740468793923,-955.28,0.00059178,120]
[354392035,1740468793933,-1525.72,0.00059178,120]
[354392036,1740468793943,-1437.76,0.00059178,120]
[354392037,1740468793952,-1132.0,0.00059178,120]
[354392038,1740468793962,-1768.38,0.00059178,120]
[354392039,1740468793972,-872.14,0.00059178,120]
[354392040,1740468793982,-1405.94,0.00059178,120]
[354392041,1740468793992,-745.77,0.00059178,120]
[354392042,1740468794002,-1000.0,0.00059178,120]
[354392043,1740468794011,-500.0,0.00059178,120]
[354392044,1740468794021,-820.25,0.00059178,120]
[354392045,1740468794030,-778.18,0.00059178,120]
[354392046,1740468794040,-500.0,0.00059178,120]
[354392047,1740468794050,-500.0,0.00059178,120]
[354392048,1740468794060,-618.03,0.00059178,120]
[354392049,1740468794069,-538.57,0.00059178,120]
[354392050,1740468794079,-659.87,0.00059178,120]
[354392051,1740468794089,-542.24,0.00059178,120]
[354392052,1740468794099,-1379.17,0.00059178,120]
[354392053,1740468794114,-813.45,0.00059178,120]
[354392054,1740468794128,-1790.29,0.00059178,120]
[354392055,1740468794138,-817.76,0.00059178,120]
[354392056,1740468794148,-1159.57,0.00059178,120]
[354392057,1740468794161,-500.0,0.00059178,120]
[354392058,1740468794171,-500.0,0.00059178,120]
[354392059,1740468794182,-493.94227983,0.00059178,120]
[354392060,1740468794193,-1035.42,0.00059178,120]
[354392061,1740468794202,-1067.5,0.00059178,120]
[354392062,1740468794212,-500.0,0.00059178,120]
[354392063,1740468794223,-911.5,0.00059178,120]
[354392064,1740468794234,-782.71,0.00059178,120]
[354392065,1740468794243,-692.81,0.00059178,120]
[354392066,1740468794254,-1417.28,0.00059178,120]
[354392067,1740468794264,-4827.95,0.00059178,120]
[354392068,1740468794274,-907.1,0.00059178,120]
[354392069,1740468794285,-1025.54,0.00059178,120]
[354392070,1740468794295,-972.52,0.00059178,120]
[354392071,1740468794305,-1147.6,0.00059178,120]
[354392072,1740468794316,-954.71,0.00059178,120]
[354392073,1740468794326,-508.53,0.00059178,120]
[354392074,1740468794336,-500.0,0.00059178,120]
[354392075,1740468794346,-672.91,0.00059178,120]
[354392076,1740468794356,-1526.64,0.00059178,120]
[354392077,1740468794366,-927.58,0.00059178,120]
[354392078,1740468794378,-500.0,0.00059178,120]
[354392079,1740468794388,-1242.39,0.00059178,120]
[354392080,1740468794398,-1600.52,0.00059178,120]
[354392081,1740468794408,-871.61,0.00059178,120]
[354392082,1740468794418,-549.43,0.00059178,120]
[354392083,1740468794427,-1142.54,0.00059178,120]
[354392084,1740468794437,-552.98,0.00059178,120]
[354392085,1740468794447,-1401.97,0.00059178,120]
[354392086,1740468794457,-1245.93,0.00059178,120]
[354392087,1740468794467,-1200.36,0.00059178,120]
[354392088,1740468794476,-500.0,0.00059178,120]
[354392089,1740468794487,-504.05,0.00059178,120]
[354392090,1740468794496,-431.70914174,0.00059178,120]
[354392091,1740468794506,-971.46,0.00059178,120]
[354392092,1740468794515,-500.0,0.00059178,120]
[354392093,1740468794525,-599.74,0.00059178,120]
[354392094,1740468794535,-515.75,0.00059178,120]
[354392095,1740468794544,-1301.53,0.00059178,120]
[354392096,1740468794554,-500.0,0.00059178,120]
[354392097,1740468794564,-1377.93,0.00059178,120]
[354392098,1740468794574,-623.61,0.00059178,120]
[354392099,1740468794584,-519.39,0.00059178,120]
[354392100,1740468794594,-500.0,0.00059178,120]
[354392101,1740468794604,-1303.38,0.00059178,120]
[354392102,1740468794614,-500.0,0.00059178,120]
[354392103,1740468794626,-500.0,0.00059178,120]
[354392104,1740468794635,-585.47,0.00059178,120]
[354392105,1740468794645,-1349.4,0.00059178,120]
[354392106,1740468794654,-552.97,0.00059178,120]